fUST/lending_fUST_20240805
["ID","MTS","AMOUNT","RATE_DAILY","PERIOD"]
[334147796,1722795048084,-1000.0,0.00014,14]
[334147797,1722795048095,-993.12,0.00014235,2]
[334147798,1722795048104,-40647.3068628,0.00014236,2]
[334147799,1722795048118,-993.12,0.00014245,2]
[334147800,1722795048127,-500.0,0.00014246,2]
[334147801,1722795048136,-500.0,0.00014246,2]
[334147802,1722795048146,-500.0,0.00014246,2]
[334147803,1722795048155,-500.0,0.00014246,2]
[334147804,1722795048165,-500.0,0.00014246,2]
[334147805,1722795048175,-500.0,0.00014246,2]
[334147806,1722795048187,-500.0,0.00014246,2]
[334147807,1722795048199,-529.16039931,0.00014246,2]
[334147808,1722795048209,-537.77,0.00014246,2]
[334147809,1722795048219,-640.63,0.00014246,2]
[334147810,1722795048229,-594.39,0.00014246,2]
[334147811,1722795048239,-500.0,0.00014246,2]
[334147812,1722795048249,-500.0,0.00014246,2]
[334147813,1722795048259,-156.20215496,0.00014246,2]
[334147814,1722795048269,-500.0,0.00014246,2]
[334147815,1722795048281,-500.0,0.00014246,2]
[334147816,1722795048293,-500.0,0.00014246,2]
[334147817,1722795048303,-1293.19,0.00014246,2]
[334147818,1722795048313,-666.79,0.00014246,2]
[334147819,1722795048323,-500.0,0.00014246,2]
[334147820,1722795048333,-500.0,0.00014246,2]
[334147821,1722795048344,-500.0,0.00014246,2]
[334147822,1722795048354,-500.0,0.00014246,2]
[334147823,1722795048364,-916.34,0.00014246,2]
[334147824,1722795048373,-500.0,0.00014246,2]
[334147825,1722795048385,-884.77,0.00014246,2]
[334147826,1722795048395,-527.02,0.00014246,2]
[334147827,1722795048405,-764.16,0.00014246,2]
[334147828,1722795048414,-506.43,0.00014246,2]
[334147829,1722795048424,-500.0,0.00014246,2]
[334147830,1722795048434,-1076.26,0.00014246,2]
[334147831,1722795048445,-1096.17,0.00014246,2]
[334147832,1722795048456,-3518.47,0.00014246,2]
[334147833,1722795048468,-500.0,0.00014246,2]
[334147834,1722795048478,-1790.76,0.00014246,2]
[334147835,1722795048488,-500.0,0.00014246,2]
[334147836,1722795048499,-151.0,0.00014246,2]
[334147837,1722795048508,-824.41,0.00014246,2]
[334147838,1722795048518,-151.0,0.00014246,2]
[334147839,1722795048528,-500.0,0.00014246,2]
[334147840,1722795048538,-1065.17,0.00014246,2]
[334147841,1722795048547,-1923.63,0.00014246,2]
[334147842,1722795048557,-500.0,0.00014246,2]
[334147843,1722795048566,-500.0,0.00014246,2]
[334147844,1722795048576,-554.45,0.00014246,2]
[334147846,1722795048586,-221.059971,0.00014246,2]
[334147847,1722795048595,-221.059971,0.00014246,2]
[334147849,1722795048604,-500.0,0.00014246,2]
[334147851,1722795048615,-529.15,0.00014246,2]
[334147853,1722795048625,-500.0,0.00014246,2]
[334147855,1722795048635,-528.0,0.00014246,2]
[334147857,1722795048647,-151.0,0.00014246,2]
[334147859,1722795048657,-500.0,0.00014246,2]
[334147861,1722795048667,-1503.29,0.00014246,2]
[334147863,1722795048677,-151.0,0.00014246,2]
[334147865,1722795048687,-703.83,0.00014246,2]
[334147867,1722795048697,-669.82,0.00014246,2]
[334147869,1722795048708,-238.74,0.00014246,2]
[334147871,1722795048719,-500.0,0.00014246,2]
[334147873,1722795048729,-500.0,0.00014246,2]
[334147875,1722795048739,-500.0,0.00014246,2]
[334147877,1722795048749,-500.0,0.00014246,2]
[334147879,1722795048759,-500.0,0.00014246,2]
[334147881,1722795048768,-674.4,0.00014246,2]
[334147883,1722795048781,-500.0,0.00014246,2]
[334147885,1722795048790,-500.0,0.00014246,2]
[334147887,1722795048801,-2804.55,0.00014246,2]
[334147889,1722795048812,-500.0,0.00014246,2]
[334147891,1722795048822,-500.0,0.00014246,2]
[334147893,1722795048831,-500.0,0.00014246,2]
[334147894,1722795048841,-507.91,0.00014246,2]
[334147896,1722795048851,-3106.09,0.00014246,2]
[334147898,1722795048860,-1567.59,0.00014246,2]
[334147900,1722795048870,-519.12,0.00014246,2]
[334147902,1722795048880,-500.0,0.00014246,2]
[334147904,1722795048891,-609.52,0.00014246,2]
[334147906,1722795048900,-549.75,0.00014246,2]
[334147907,1722795048910,-963.61,0.00014246,2]
[334147908,1722795048920,-3333.67,0.00014246,2]
[334147910,1722795048930,-500.0,0.00014246,2]
[334147912,1722795048939,-500.0,0.00014246,2]
[334147914,1722795048948,-500.0,0.00014246,2]
[334147916,1722795048958,-500.0,0.00014246,2]
[334147918,1722795048968,-555.33,0.00014246,2]
[334147919,1722795048977,-500.0,0.00014246,2]
[334147922,1722795048989,-500.0,0.00014246,2]
[334147924,1722795048998,-500.0,0.00014246,2]
[334147925,1722795049007,-750.0,0.00014247,2]
[334147927,1722795049017,-6355.37449435,0.0001427,2]
[334147929,1722795049030,-150.0,0.00014396,2]
[334147930,1722795049040,-259.192819,0.00014453,2]
[334147932,1722795049049,-259.192819,0.00014453,2]
[334147934,1722795049058,-166.046699,0.00014453,2]
[334147936,1722795049068,-166.046699,0.00014453,2]
[334147938,1722795049077,-253.126703,0.00014453,2]
[334147940,1722795049086,-151.0,0.00014453,2]
[334147942,1722795049098,-202.275015,0.00014453,2]
[334147944,1722795049108,-202.275015,0.00014453,2]
[334147945,1722795049118,-151.0,0.00014453,2]
[334147947,1722795049128,-151.0,0.00014453,2]
[334147949,1722795049138,-201.906032,0.00014453,2]
[334147950,1722795049149,-151.0,0.00014453,2]
[334147952,1722795049159,-182.385238,0.00014453,2]
[334147954,1722795049168,-182.385238,0.00014453,2]
[334147956,1722795049180,-367.88690048,0.00014461,2]
[334147958,1722795049190,-151.0,0.00014479,2]
[334147960,1722795049199,-151.0,0.00014491,2]
[334147962,1722795049209,-151.0,0.00014491,2]
[334147964,1722795049220,-151.0,0.00014491,2]
[334147966,1722795049231,-151.0,0.00014491,2]
[334147968,1722795049240,-993.12,0.00014509,2]
[334147970,1722795049250,-10174.11214595,0.0001451,5]
[334147972,1722795049259,-20323.6534314,0.0001451,2]
[334147974,1722795049271,-993.12,0.00014519,2]
[334147976,1722795049287,-378.39,0.0001452,2]
[334147978,1722795049303,-500.0,0.0001452,2]
[334147980,1722795049313,-500.0,0.0001452,2]
[334147981,1722795049328,-500.0,0.0001452,2]
[334147983,1722795049338,-429.77626069,0.0001452,2]
[334147985,1722795049348,-500.0,0.0001452,2]
[334147987,1722795049359,-151.0,0.0001452,2]
[334147989,1722795049368,-500.0,0.0001452,2]
[334147991,1722795049378,-537.77,0.0001452,2]
[334147993,1722795049388,-640.63,0.0001452,2]
[334147995,1722795049397,-500.0,0.0001452,2]
[334147997,1722795049407,-500.0,0.0001452,2]
[334147999,1722795049416,-500.0,0.0001452,2]
[334148001,1722795049425,-500.0,0.0001452,2]
[334148012,1722795049533,-500.0,0.0001452,2]
[334148014,1722795049543,-1293.19,0.0001452,2]
[334148016,1722795049553,-666.79,0.0001452,2]
[334148018,1722795049562,-542.94,0.0001452,2]
[334148020,1722795049573,-500.0,0.0001452,2]
[334148022,1722795049583,-500.0,0.0001452,2]
[334148024,1722795049593,-500.0,0.0001452,2]
[334148026,1722795049603,-916.34,0.0001452,2]
[334148028,1722795049614,-500.0,0.0001452,2]
[334148030,1722795049624,-884.77,0.0001452,2]
[334148032,1722795049634,-527.02,0.0001452,2]
[334148034,1722795049645,-764.16,0.0001452,2]
[334148036,1722795049655,-506.43,0.0001452,2]
[334148038,1722795049665,-500.0,0.0001452,2]
[334148040,1722795049675,-1076.26,0.0001452,2]
[334148042,1722795049686,-1096.17,0.0001452,2]
[334148044,1722795049696,-3518.47,0.0001452,2]
[334148046,1722795049706,-500.0,0.0001452,2]
[334148048,1722795049715,-1790.76,0.0001452,2]
[334148050,1722795049725,-500.0,0.0001452,2]
[334148052,1722795049736,-151.0,0.0001452,2]
[334148054,1722795049746,-824.41,0.0001452,2]
[334148056,1722795049757,-151.0,0.0001452,2]
[334148058,1722795049767,-500.0,0.0001452,2]
[334148060,1722795049782,-1065.17,0.0001452,2]
[334148062,1722795049792,-1923.63,0.0001452,2]
[334148064,1722795049802,-600.9,0.0001452,2]
[334148066,1722795049812,-500.0,0.0001452,2]
[334148068,1722795049822,-554.45,0.0001452,2]
[334148070,1722795049831,-221.059971,0.0001452,2]
[334148072,1722795049842,-221.059971,0.0001452,2]
[334148074,1722795049852,-500.0,0.0001452,2]
[334148076,1722795049862,-529.15,0.0001452,2]
[334148078,1722795049872,-500.0,0.0001452,2]
[334148080,1722795049883,-528.0,0.0001452,2]
[334148082,1722795049893,-151.0,0.0001452,2]
[334148084,1722795049904,-500.0,0.0001452,2]
[334148086,1722795049915,-1503.29,0.0001452,2]
[334148088,1722795049924,-193.496358,0.0001452,2]
[334148090,1722795049934,-703.83,0.0001452,2]
[334148092,1722795049945,-669.82,0.0001452,2]
[334148094,1722795049955,-500.0,0.0001452,2]
[334148096,1722795049966,-500.0,0.0001452,2]
[334148098,1722795049977,-500.0,0.0001452,2]
[334148100,1722795049988,-500.0,0.0001452,2]
[334148102,1722795049998,-500.0,0.0001452,2]
[334148104,1722795050009,-674.4,0.0001452,2]
[334148106,1722795050020,-500.0,0.0001452,2]
[334148108,1722795050035,-500.0,0.0001452,2]
[334148110,1722795050044,-2804.55,0.0001452,2]
[334148112,1722795050055,-500.0,0.0001452,2]
[334148114,1722795050066,-500.0,0.0001452,2]
[334148115,1722795050076,-500.0,0.0001452,2]
[334148116,1722795050086,-507.91,0.0001452,2]
[334148117,1722795050098,-3106.09,0.0001452,2]
[334148118,1722795050109,-1567.59,0.0001452,2]
[334148119,1722795050120,-519.12,0.0001452,2]
[334148120,1722795050132,-500.0,0.0001452,2]
[334148121,1722795050143,-609.52,0.0001452,2]
[334148122,1722795050154,-549.75,0.0001452,2]
[334148123,1722795050165,-963.61,0.0001452,2]
[334148124,1722795050174,-3333.67,0.0001452,2]
[334148125,1722795050185,-500.0,0.0001452,2]
[334148126,1722795050196,-500.0,0.0001452,2]
[334148127,1722795050205,-500.0,0.0001452,2]
[334148128,1722795050215,-500.0,0.0001452,2]
[334148129,1722795050224,-555.33,0.0001452,2]
[334148130,1722795050233,-500.0,0.0001452,2]
[334148131,1722795050243,-500.0,0.0001452,2]
[334148132,1722795050253,-500.0,0.0001452,2]
[334148133,1722795050262,-204.84569903,0.00014545,2]
[334148134,1722795050272,-259.192819,0.00014587,2]
[334148135,1722795050284,-259.192819,0.00014587,2]
[334148136,1722795050294,-151.0,0.00014642,2]
[334148137,1722795050303,-20323.6534314,0.00014642,2]
[334148138,1722795050313,-155.0,0.0001465,2]
[334148139,1722795050322,-620.05444597,0.00014652,2]
[334148140,1722795050332,-88.57305492,0.00014658,2]
[334148141,1722795050352,-451.51601229,0.00014658,2]
[334148142,1722795050364,-453.03093279,0.00014658,2]
[334148143,1722795050373,-151.0,0.00014658,2]
[334148144,1722795050382,-202.275015,0.00014658,2]
[334148145,1722795050395,-8.93980457,0.00014658,2]
[334148148,1722795050408,-193.33521043,0.00014658,2]
[334148149,1722795050417,-151.0,0.00014658,2]
[334148151,1722795050425,-151.0,0.00014658,2]
[334148153,1722795050434,-272.725712,0.00014658,2]
[334148155,1722795050443,-182.385238,0.00014658,2]
[334148157,1722795050453,-182.385238,0.00014658,2]
[334148159,1722795050463,-166.046699,0.00014685,2]
[334148161,1722795050473,-166.046699,0.00014685,2]
[334148163,1722795050482,-151.0,0.00014685,2]
[334148165,1722795050491,-93.97097781,0.00014685,2]
[334148167,1722795050503,-57.02902219,0.00014685,2]
[334148169,1722795050512,-151.0,0.00014685,2]
[334148171,1722795050522,-1190.48023251,0.00014685,2]
[334148203,1722795050826,-5.57538778,0.00014685,2]
[334148205,1722795050838,-416.94437971,0.00014685,2]
[334148207,1722795050848,-251.05562029,0.0001469,2]
[334148470,1722796234439,-250.0,9.152e-05,2]
[334148471,1722796234449,-250.0,9.177e-05,2]
[334148472,1722796234458,-250.0,9.202e-05,2]
[334148473,1722796234470,-250.0,9.227e-05,2]
[334148474,1722796234483,-250.0,9.252e-05,2]
[334148475,1722796234493,-250.0,9.278e-05,2]
[334148476,1722796234503,-166.84407386,9.7e-05,2]
[334148477,1722796234516,-812.12715346,9.7e-05,2]
[334148478,1722796234527,-978.97122732,9.798e-05,2]
[334148479,1722796234537,-191.62470048,9.898e-05,2]
[334148480,1722796234546,-300.0,9.998e-05,2]
[334148481,1722796234557,-300.0,9.998e-05,2]
[334148482,1722796234567,-244.84557874,9.999e-05,2]
[334148483,1722796234577,-154.80649189,9.999e-05,2]
[334148484,1722796234587,-154.79103211,9.999e-05,2]
[334148485,1722796234599,-519.59956575,9.999e-05,2]
[334148486,1722796234609,-350.24952444,9.999e-05,2]
[334148487,1722796234619,-523.06806918,9.999e-05,2]
[334148488,1722796234630,-154.79103211,9.999e-05,2]
[334148489,1722796234640,-154.79103211,9.999e-05,2]
[334148490,1722796234651,-154.79103211,9.999e-05,2]
[334148492,1722796234661,-201.4758121,9.999e-05,2]
[334148494,1722796234672,-664.23911189,9.999e-05,2]
[334148495,1722796234686,-156.8188046,9.999e-05,2]
[334148496,1722796234696,-155.21293793,9.999e-05,2]
[334148497,1722796234706,-154.79103211,9.999e-05,2]
[334148498,1722796234717,-413.91232311,9.999e-05,2]
[334148499,1722796234727,-154.79103211,9.999e-05,2]
[334148500,1722796234736,-522.26012374,9.999e-05,2]
[334148501,1722796234746,-154.79103211,9.999e-05,2]
[334148502,1722796234757,-494.23715236,9.999e-05,2]
[334148503,1722796234768,-157.80579925,9.999e-05,2]
[334148504,1722796234777,-600.8534117,9.999e-05,2]
[334148505,1722796234787,-287.48390331,0.0001,2]
[334148506,1722796234797,-4233.43855322,0.00010339,2]
[334148507,1722796234810,-419.24097497,0.00010339,2]
[334148508,1722796234822,-7108.49699989,0.00010339,2]
[334148535,1722796239778,-250.0,9.061e-05,2]
[334148538,1722796239787,-250.0,9.303e-05,2]
[334148540,1722796239799,-250.0,9.328e-05,2]
[334148541,1722796239810,-250.0,9.353e-05,2]
[334148542,1722796239819,-250.0,9.378e-05,2]
[334148544,1722796239829,-250.0,9.403e-05,2]
[334148546,1722796239841,-250.0,9.428e-05,2]
[334148548,1722796239853,-250.0,9.453e-05,2]
[334148549,1722796239864,-250.0,9.478e-05,2]
[334148550,1722796239875,-250.0,9.503e-05,2]
[334148551,1722796239886,-250.0,9.528e-05,2]
[334148552,1722796239896,-250.0,9.554e-05,2]
[334148553,1722796239906,-250.0,9.579e-05,2]
[334148554,1722796239916,-250.0,9.604e-05,2]
[334148555,1722796239927,-250.0,9.629e-05,2]
[334148556,1722796239940,-8175.94455116,0.00010339,2]
[334148564,1722796240558,-290.85165051,9.999e-05,2]
[334148565,1722796240571,-661.97538883,0.00010339,2]
[334148566,1722796240583,-4300.90353193,0.00010339,2]
[334148567,1722796240594,-399.4,0.00010959,2]
[334148568,1722796240604,-332.83,0.00010959,2]
[334148569,1722796240617,-277.36,0.00010959,2]
[334148570,1722796240627,-231.13,0.00010959,2]
[334148571,1722796240637,-192.61,0.00010959,2]
[334148572,1722796240648,-160.51,0.00010959,2]
[334148573,1722796240659,-420.0,0.00010998,2]
[334148574,1722796240670,-267.0,0.00010998,2]
[334148575,1722796240685,-587.0,0.00012098,2]
[334148576,1722796240695,-395.54466025,0.000123,2]
[334148577,1722796240705,-4701.99252578,0.000129,2]
[334148578,1722796240715,-2059.47395771,0.00013,2]
[334148579,1722796240726,-823.0,0.00013307,2]
[334148580,1722796240736,-39297.35595978,0.00013688,2]
[334148581,1722796240747,-14002.7983638,0.00013688,2]
[334148582,1722796240758,-14002.7983638,0.00013689,2]
[334148583,1722796240769,-649.85,0.00013697,2]
[334148584,1722796240780,-500.0,0.00013698,2]
[334148585,1722796240790,-500.0,0.00013698,2]
[334148586,1722796240800,-500.0,0.00013698,2]
[334148587,1722796240811,-500.0,0.00013698,2]
[334148588,1722796240821,-500.0,0.00013698,2]
[334148589,1722796240831,-517.2698936,0.00013698,2]
[334148590,1722796240840,-500.0,0.00013698,2]
[334148591,1722796240850,-500.0,0.00013698,2]
[334148592,1722796240861,-500.0,0.00013698,2]
[334148593,1722796240872,-282.21176835,0.00013698,2]
[334148594,1722796240885,-500.0,0.00013698,2]
[334148595,1722796240895,-500.0,0.00013698,2]
[334148596,1722796240905,-500.0,0.00013698,2]
[334148597,1722796240914,-500.0,0.00013698,2]
[334148598,1722796240925,-500.0,0.00013698,2]
[334148599,1722796240939,-500.0,0.00013698,2]
[334148600,1722796240951,-500.0,0.00013698,2]
[334148601,1722796240961,-500.0,0.00013698,2]
[334148602,1722796240971,-500.0,0.00013698,2]
[334148603,1722796240983,-500.0,0.00013698,2]
[334148604,1722796240994,-500.0,0.00013698,2]
[334148605,1722796241004,-500.0,0.00013698,2]
[334148606,1722796241014,-500.0,0.00013698,2]
[334148607,1722796241024,-500.0,0.00013698,2]
[334148608,1722796241034,-276.62559626,0.00013698,2]
[334148609,1722796241045,-500.0,0.00013698,2]
[334148610,1722796241054,-500.0,0.00013698,2]
[334148611,1722796241065,-500.0,0.00013698,2]
[334148612,1722796241075,-472.54902445,0.00013698,2]
[334148613,1722796241084,-502.39360258,0.00013698,2]
[334148614,1722796241094,-508.35367395,0.00013698,2]
[334148615,1722796241103,-500.0,0.00013698,2]
[334148616,1722796241112,-500.0,0.00013698,2]
[334148617,1722796241122,-500.0,0.00013698,2]
[334148618,1722796241132,-533.86,0.00013698,2]
[334148619,1722796241142,-500.0,0.00013698,2]
[334148620,1722796241151,-500.0,0.00013698,2]
[334148621,1722796241161,-500.0,0.00013698,2]
[334148622,1722796241171,-500.0,0.00013698,2]
[334148623,1722796241183,-500.0,0.00013698,2]
[334148624,1722796241194,-500.0,0.00013698,2]
[334148625,1722796241205,-555.66,0.00013698,2]
[334148626,1722796241216,-1077.66,0.00013698,2]
[334148627,1722796241227,-500.0,0.00013698,2]
[334148628,1722796241237,-220.80879982,0.00013698,2]
[334148629,1722796241248,-500.0,0.00013698,2]
[334148630,1722796241258,-737.31,0.00013698,2]
[334148631,1722796241269,-500.0,0.00013698,2]
[334148632,1722796241279,-500.0,0.00013698,2]
[334148633,1722796241291,-500.0,0.00013698,2]
[334148634,1722796241302,-636.8,0.00013698,2]
[334148635,1722796241314,-500.0,0.00013698,2]
[334148636,1722796241324,-913.48,0.00013698,2]
[334148637,1722796241335,-2932.06,0.00013698,2]
[334148638,1722796241345,-500.0,0.00013698,2]
[334148639,1722796241355,-500.0,0.00013698,2]
[334148640,1722796241364,-763.62,0.00013698,2]
[334148641,1722796241374,-1492.3,0.00013698,2]
[334148642,1722796241384,-1603.02,0.00013698,2]
[334148643,1722796241394,-500.0,0.00013698,2]
[334148644,1722796241403,-586.52,0.00013698,2]
[334148645,1722796241413,-500.0,0.00013698,2]
[334148646,1722796241422,-687.01,0.00013698,2]
[334148647,1722796241434,-500.0,0.00013698,2]
[334148648,1722796241443,-500.0,0.00013698,2]
[334148649,1722796241453,-500.0,0.00013698,2]
[334148650,1722796241464,-500.0,0.00013698,2]
[334148651,1722796241479,-500.0,0.00013698,2]
[334148652,1722796241489,-887.65,0.00013698,2]
[334148653,1722796241500,-558.19,0.00013698,2]
[334148654,1722796241510,-500.0,0.00013698,2]
[334148655,1722796241523,-2337.12,0.00013698,2]
[334148656,1722796241533,-500.0,0.00013698,2]
[334148657,1722796241544,-379.38392656,0.00013698,2]
[334148658,1722796241554,-189.59691132,0.00013698,2]
[334148659,1722796241567,-500.0,0.00013698,2]
[334148660,1722796241578,-500.0,0.00013698,2]
[334148661,1722796241587,-500.0,0.00013698,2]
[334148662,1722796241598,-426.78980652,0.00013698,2]
[334148663,1722796241608,-500.0,0.00013698,2]
[334148664,1722796241620,-500.0,0.00013698,2]
[334148665,1722796241629,-1252.74,0.00013698,2]
[334148666,1722796241639,-500.0,0.00013698,2]
[334148667,1722796241648,-562.0,0.00013698,2]
[334148668,1722796241658,-500.0,0.00013698,2]
[334148669,1722796241667,-500.0,0.00013698,2]
[334148670,1722796241678,-500.0,0.00013698,2]
[334148671,1722796241691,-330.58614573,0.00013698,2]
[334148672,1722796241702,-500.0,0.00013698,2]
[334148673,1722796241712,-500.0,0.00013698,2]
[334148674,1722796241724,-500.0,0.00013698,2]
[334148675,1722796241734,-500.0,0.00013698,2]
[334148676,1722796241744,-500.0,0.00013698,2]
[334148677,1722796241862,-507.93,0.00013698,2]
[334148678,1722796241874,-2588.41,0.00013698,2]
[334148679,1722796241883,-500.0,0.00013698,2]
[334148680,1722796241893,-500.0,0.00013698,2]
[334148681,1722796241904,-1306.33,0.00013698,2]
[334148682,1722796241913,-803.01,0.00013698,2]
[334148683,1722796241924,-500.0,0.00013698,2]
[334148684,1722796241933,-2778.06,0.00013698,2]
[334148685,1722796241944,-500.0,0.00013698,2]
[334148686,1722796241956,-500.0,0.00013698,2]
[334148687,1722796241967,-500.0,0.00013698,2]
[334148688,1722796241978,-500.0,0.00013698,2]
[334148689,1722796241989,-500.0,0.00013698,2]
[334148690,1722796242000,-500.0,0.00013698,2]
[334148691,1722796242011,-500.0,0.00013698,2]
[334148692,1722796242022,-896.88,0.00013698,2]
[334148693,1722796242032,-500.0,0.00013698,2]
[334148694,1722796242043,-500.0,0.00013698,2]
[334148695,1722796242053,-3000.0,0.00013699,2]
[334148696,1722796242062,-456.363485,0.00013699,2]
[334148697,1722796242072,-500.0,0.00013699,2]
[334148698,1722796242081,-500.0,0.00013699,2]
[334148699,1722796242090,-223.61000129,0.00013699,2]
[334148700,1722796242099,-153.0,0.00013757,2]
[334148701,1722796242109,-306.0,0.00013757,2]
[334148702,1722796242118,-153.0,0.00013757,2]
[334148703,1722796242128,-153.0,0.00013757,2]
[334148704,1722796242141,-306.0,0.00013757,2]
[334148705,1722796242150,-153.0,0.00013757,2]
[334148706,1722796242160,-732.15601001,0.000138,2]
[334148707,1722796242169,-5975.6165018,0.000139,2]
[334148708,1722796242178,-14002.7983638,0.00013962,2]
[334148709,1722796242190,-649.85,0.00013971,2]
[334148710,1722796242200,-500.0,0.00013972,2]
[334148711,1722796242209,-500.0,0.00013972,2]
[334148712,1722796242218,-500.0,0.00013972,2]
[334148713,1722796242228,-500.0,0.00013972,2]
[334148714,1722796242238,-500.0,0.00013972,2]
[334148715,1722796242249,-500.0,0.00013972,2]
[334148716,1722796242259,-500.0,0.00013972,2]
[334148717,1722796242268,-533.86,0.00013972,2]
[334148718,1722796242278,-500.0,0.00013972,2]
[334148719,1722796242289,-500.0,0.00013972,2]
[334148720,1722796242300,-527.41374417,0.00013972,2]
[334148721,1722796242312,-500.0,0.00013972,2]
[334148722,1722796242323,-500.0,0.00013972,2]
[334148723,1722796242332,-500.0,0.00013972,2]
[334148724,1722796242343,-555.66,0.00013972,2]
[334148725,1722796242354,-1077.66,0.00013972,2]
[334148726,1722796242363,-500.0,0.00013972,2]
[334148727,1722796242373,-500.0,0.00013972,2]
[334148728,1722796242382,-737.31,0.00013972,2]
[334148729,1722796242392,-500.0,0.00013972,2]
[334148730,1722796242401,-500.0,0.00013972,2]
[334148731,1722796242410,-500.0,0.00013972,2]
[334148732,1722796242419,-636.8,0.00013972,2]
[334148733,1722796242429,-500.0,0.00013972,2]
[334148734,1722796242441,-913.48,0.00013972,2]
[334148735,1722796242450,-2932.06,0.00013972,2]
[334148736,1722796242460,-500.0,0.00013972,2]
[334148737,1722796242471,-500.0,0.00013972,2]
[334148738,1722796242483,-763.62,0.00013972,2]
[334148739,1722796242495,-1492.3,0.00013972,2]
[334148740,1722796242505,-1603.02,0.00013972,2]
[334148741,1722796242514,-500.0,0.00013972,2]
[334148742,1722796242524,-586.52,0.00013972,2]
[334148743,1722796242534,-500.0,0.00013972,2]
[334148744,1722796242543,-687.01,0.00013972,2]
[334148745,1722796242552,-204.09,0.00013972,2]
[334148746,1722796242563,-500.0,0.00013972,2]
[334148748,1722796242572,-500.0,0.00013972,2]
[334148750,1722796242581,-500.0,0.00013972,2]
[334148751,1722796242591,-500.0,0.00013972,2]
[334148752,1722796242600,-887.65,0.00013972,2]
[334148753,1722796242609,-558.19,0.00013972,2]
[334148754,1722796242618,-500.0,0.00013972,2]
[334148755,1722796242628,-2337.12,0.00013972,2]
[334148757,1722796242637,-1252.74,0.00013972,2]
[334148759,1722796242646,-500.0,0.00013972,2]
[334148760,1722796242656,-562.0,0.00013972,2]
[334148762,1722796242665,-500.0,0.00013972,2]
[334148763,1722796242674,-500.0,0.00013972,2]
[334148764,1722796242686,-500.0,0.00013972,2]
[334148765,1722796242695,-500.0,0.00013972,2]
[334148766,1722796242704,-500.0,0.00013972,2]
[334148767,1722796242714,-500.0,0.00013972,2]
[334148768,1722796242723,-500.0,0.00013972,2]
[334148769,1722796242733,-500.0,0.00013972,2]
[334148770,1722796242743,-507.93,0.00013972,2]
[334148771,1722796242754,-2588.41,0.00013972,2]
[334148772,1722796242764,-500.0,0.00013972,2]
[334148773,1722796242775,-500.0,0.00013972,2]
[334148774,1722796242785,-1306.33,0.00013972,2]
[334148775,1722796242796,-803.01,0.00013972,2]
[334148777,1722796242808,-500.0,0.00013972,2]
[334148779,1722796242818,-2778.06,0.00013972,2]
[334148780,1722796242831,-500.0,0.00013972,2]
[334148781,1722796242840,-500.0,0.00013972,2]
[334148782,1722796242850,-500.0,0.00013972,2]
[334148783,1722796242860,-643.95683718,0.00013972,2]
[334148784,1722796242869,-500.0,0.00013972,2]
[334148785,1722796242879,-500.0,0.00013972,2]
[334148786,1722796242888,-500.0,0.00013972,2]